bitfinex/quotes_ETHUSD_20250114
["timestamp","ask_amount","ask_price","bid_price","bid_amount"]
[1736876884144,0.55,3211.9,3211.2,0.7923]
[1736876884306,0.55,3211.6,3210.9,0.7923]
[1736876884507,3.1135,3211.9,3211.0,3.11423]
[1736876884707,0.194,3212.2,3211.3,3.94082772]
[1736876884936,4.08112,3212.5,3211.5,3.1138]
[1736876885138,3.30674,3212.6,3211.7,3.11358]
[1736876885513,0.55,3212.5,3211.7,3.11358]
[1736876885718,3.30674,3212.6,3211.7,3.11358]
[1736876886042,3.30674,3212.6,3211.8,0.390588]
[1736876886220,0.55,3212.3,3211.8,0.390588]
[1736876886556,0.55,3212.2,3211.6,0.7923]
[1736876887435,0.55,3212.1,3211.6,0.7923]
[1736876888230,0.58891835,3212.5,3211.6,0.7923]
[1736876888562,0.55,3212.0,3211.6,0.7923]
[1736876888762,1.0071195,3212.6,3211.6,0.7923]
[1736876888763,0.55,3212.2,3211.6,0.7923]
[1736876889145,0.55,3212.2,3211.6,1.17153]
[1736876890455,4.11988856,3212.6,3211.6,1.17153]
[1736876890684,0.55,3212.3,3211.6,0.7923]
[1736876891179,4.08097,3212.6,3211.6,0.7923]
[1736876891381,0.194,3212.6,3211.9,3.11341]
[1736876891611,0.194,3212.6,3212.0,0.7923]
[1736876891753,0.55,3212.5,3212.0,0.7923]
[1736876892055,0.55,3212.7,3212.0,0.7923]
[1736876892264,0.55,3212.7,3212.1,0.390564]
[1736876892446,0.194,3213.1,3212.4,0.7923]
[1736876892851,0.194,3213.1,3212.6,3.11272]
[1736876893065,0.7742,3213.4,3212.6,3.11272]
[1736876893488,0.7742,3213.4,3212.4,6.90518]
[1736876893647,0.7742,3213.4,3212.4,0.7923]
[1736876893849,3.15626279,3214.2,3213.1,3.94082772]
[1736876894073,3.15626279,3214.2,3213.6,0.7923]
[1736876894273,0.7742,3215.2,3214.0,0.7923]
[1736876894476,0.7742,3215.2,3213.5,3.11181]
[1736876894477,3.11024,3215.2,3214.2,0.7923]
[1736876894690,3.11024,3215.2,3214.3,0.77331277]
[1736876894861,3.10946,3216.0,3215.0,3.94082772]
[1736876895102,0.25,3216.4,3214.5,3.0]
[1736876895103,3.88318,3216.5,3215.6,3.94082772]
[1736876895303,0.7742,3216.5,3215.4,3.11001]
[1736876895528,3.88317,3216.5,3215.5,0.70508377]
[1736876895728,0.7742,3216.5,3215.5,0.70508377]
[1736876895937,0.7742,3216.5,3215.1,0.7923]
[1736876896130,0.7742,3216.5,3215.1,4.73312772]
[1736876896438,3.10936,3216.1,3215.1,0.7923]
[1736876896920,0.03887314,3216.4,3215.1,0.7923]
[1736876896921,0.194,3216.2,3215.1,0.7923]
[1736876897124,3.88322,3216.5,3215.1,0.7923]
[1736876897307,3.88322,3216.5,3215.1,1.26561277]
[1736876897308,0.55,3216.0,3215.1,1.26561277]
[1736876897504,0.55,3215.9,3215.1,1.26561277]
[1736876897827,0.55,3215.8,3215.1,0.7923]
[1736876898128,3.65984,3215.6,3214.6,0.7763]
[1736876898436,0.55,3215.2,3214.6,0.7763]
[1736876898626,0.55,3215.3,3214.6,0.7763]
[1736876898934,0.194,3215.6,3214.6,0.7763]
[1736876898935,0.55,3215.5,3214.6,0.7763]
[1736876899108,3.66022,3215.3,3214.6,0.7763]
[1736876899493,0.55,3215.5,3214.6,0.7763]
[1736876899717,0.194,3215.8,3214.7,3.1107]
[1736876899928,0.55,3215.7,3214.7,3.4994]
[1736876900129,0.194,3215.8,3214.8,3.0]
[1736876900430,0.194,3216.0,3214.9,3.11049]
[1736876900606,0.55,3215.7,3214.8,3.0]
[1736876900931,0.55,3215.7,3214.6,3.7763]
[1736876901142,0.55,3215.4,3214.6,3.7763]
[1736876901949,3.65983,3215.7,3214.6,6.88708]
[1736876902098,0.55,3215.4,3214.6,0.7763]
[1736876902436,0.55,3215.7,3214.6,0.7763]
[1736876902641,0.55,3215.3,3214.6,0.7763]
[1736876902843,3.11024,3215.2,3214.6,0.7763]
[1736876903046,3.11032,3215.1,3214.3,0.7763]
[1736876903208,0.55,3215.0,3214.3,0.7763]
[1736876903529,0.55,3215.2,3214.3,0.7763]
[1736876903848,0.55,3215.2,3214.3,3.88739]
[1736876904344,0.55,3215.2,3214.3,0.7763]
[1736876905531,3.30394,3215.5,3214.4,7.05179772]
[1736876905716,3.30394,3215.5,3214.5,0.78280977]
[1736876905917,0.55,3215.4,3214.5,3.89367977]
[1736876906228,0.55,3215.5,3214.5,3.89367977]
[1736876906750,3.65993,3215.5,3214.5,0.78280977]
[1736876906950,0.03888087,3215.5,3214.3,0.7763]
[1736876907152,0.55,3215.3,3214.3,0.7763]
[1736876907343,0.8216,3215.7,3213.2,0.39408277]
[1736876907344,0.194,3215.6,3214.8,0.7763]
[1736876907743,0.55,3215.5,3214.8,0.7763]
[1736876908157,0.194,3215.6,3214.8,0.7763]
[1736876908347,0.194,3215.6,3214.9,0.47171277]
[1736876908547,0.55,3215.5,3214.8,0.7763]
[1736876909524,0.55,3215.4,3214.8,0.7763]
[1736876910046,0.55,3215.5,3214.8,0.7763]
[1736876910269,0.55,3215.2,3214.5,3.0]
[1736876910568,0.55,3215.2,3214.4,3.94082772]
[1736876910569,0.55,3214.9,3214.4,0.7763]
[1736876911810,0.03888472,3214.8,3214.4,0.7763]
[1736876912007,3.11082,3214.6,3213.7,0.7603]
[1736876912290,3.11082,3214.6,3213.7,3.7603]
[1736876912291,0.55,3214.5,3213.7,3.7603]
[1736876912490,0.55,3214.5,3213.8,1.08128777]
[1736876912715,0.8302,3215.3,3214.0,3.94082772]
[1736876913003,3.30531,3215.2,3214.3,7.05189772]
[1736876913206,0.55,3215.1,3214.3,7.05189772]
[1736876913372,0.55,3215.1,3214.4,3.111]
[1736876913572,0.195,3215.2,3214.6,4.70112772]
[1736876913790,0.195,3215.2,3214.7,3.0]
[1736876914201,3.10956,3215.9,3215.0,3.11039]
[1736876914574,0.55,3215.8,3215.0,3.11039]
[1736876914782,0.55,3215.8,3215.0,3.89154177]
[1736876915135,3.10956,3215.9,3215.0,3.89154177]
[1736876915525,0.55,3215.8,3215.0,3.89154177]
[1736876915688,0.55,3215.8,3215.0,3.78115177]
[1736876915890,0.55,3215.7,3215.0,3.0]
[1736876916381,0.55,3215.9,3215.0,3.0]
[1736876916806,3.65958,3215.9,3215.0,3.0]
[1736876917016,0.03887459,3215.8,3215.0,3.0]
[1736876917174,0.55,3215.7,3215.0,3.0]
[1736876917375,3.65976,3215.7,3215.0,0.77011277]
[1736876917653,0.55,3215.7,3214.8,3.7603]
[1736876917816,0.55,3215.5,3214.8,3.7603]
[1736876918013,0.55,3215.8,3214.8,3.7603]
[1736876918277,0.03888076,3215.7,3214.8,3.7603]
[1736876918577,0.195,3216.0,3215.0,6.11034]
[1736876918778,3.10945,3216.0,3215.1,4.11539677]
[1736876919009,0.55,3215.9,3215.1,4.11539677]
[1736876919228,0.55,3215.9,3215.2,0.7603]
[1736876919575,0.8302,3216.6,3215.6,0.7603]
[1736876919886,0.8302,3216.6,3215.6,7.34024277]
[1736876920090,3.10885,3216.7,3215.8,7.05043772]
[1736876920326,3.1089,3216.6,3215.8,3.94082772]
[1736876920776,4.13373,3217.0,3215.7,3.0]
[1736876920777,3.10918,3216.3,3215.7,3.0]
[1736876920976,0.55,3216.2,3215.6,0.7603]
[1736876921323,3.10865,3216.9,3215.6,3.7603]
[1736876921562,3.1091,3216.4,3215.6,3.7603]
[1736876921855,0.55,3216.2,3215.6,0.7603]
[1736876922406,0.55,3216.3,3215.6,0.7603]
[1736876922607,0.55,3215.8,3215.3,3.0]
[1736876922808,1.55321814,3219.5,3215.3,3.0]
[1736876923010,0.55,3216.0,3215.2,7.72052772]
[1736876923313,0.55,3216.0,3215.2,8.80360949]
[1736876924147,3.10941,3216.1,3215.2,8.80360949]
[1736876924148,0.55,3216.2,3215.3,0.28617117]
[1736876924356,0.55,3216.0,3215.4,0.7797]
[1736876924507,3.10933,3216.2,3215.4,0.7797]
[1736876924939,0.55,3216.1,3215.4,0.7797]
[1736876925270,0.195,3216.7,3215.7,0.7797]
[1736876925410,0.195,3216.7,3215.8,7.05041772]
[1736876925816,3.30379,3216.7,3215.8,7.05041772]
[1736876926113,0.8118,3217.1,3216.2,3.0]
[1736876926313,3.1083,3217.2,3216.4,3.94082772]
[1736876926565,3.1081,3217.4,3216.7,3.94082772]
[1736876926777,3.1081,3217.4,3216.5,3.47464277]
[1736876926908,0.03885743,3217.3,3216.3,0.8056]
[1736876927266,3.10863,3216.9,3216.3,0.8056]
[1736876927418,0.03886117,3217.2,3216.3,0.8056]
[1736876927764,1.3477,3217.0,3215.6,0.8056]
[1736876927966,0.55,3216.8,3215.6,0.8056]
[1736876928110,0.55,3216.6,3214.9,0.8056]
[1736876928318,0.55,3215.8,3214.9,0.8056]
[1736876928564,0.55,3215.8,3214.9,3.8056]
[1736876928764,0.55,3215.7,3215.0,1.08570177]
[1736876929115,0.55,3215.7,3214.9,3.8056]
[1736876929336,0.9927,3216.0,3214.9,3.8056]
[1736876929566,0.9927,3216.0,3215.0,0.2859576]
[1736876929567,0.55,3215.8,3215.0,0.2859576]
[1736876930230,0.55,3215.9,3215.0,0.2859576]
[1736876930434,0.195,3216.0,3215.5,3.94082772]
[1736876930622,0.195,3216.0,3215.5,4.41547049]
[1736876930820,0.55,3216.3,3215.5,0.47464277]
[1736876931169,0.195,3216.3,3215.7,3.10972]
[1736876932047,0.195,3216.3,3215.6,3.2859576]
[1736876933165,0.195,3216.3,3215.6,3.0]
[1736876933863,0.195,3216.3,3215.6,6.10981]
[1736876934061,0.195,3216.3,3215.7,0.2856376]
[1736876934267,0.195,3216.3,3215.7,4.50954513]
[1736876934560,0.195,3216.3,3215.7,1.39982513]
[1736876934927,0.195,3216.3,3215.7,0.2856376]
[1736876935128,0.55,3216.1,3215.7,0.2856376]
[1736876935540,0.55,3216.1,3215.5,0.8056]
[1736876936525,0.55,3216.2,3215.5,0.8056]
[1736876937173,0.195,3216.4,3215.5,0.8056]
[1736876937375,0.195,3216.4,3215.6,3.38056]
[1736876937732,0.55,3216.3,3215.6,3.38056]
[1736876938267,0.55,3216.3,3215.6,0.38056]
[1736876938580,0.55,3216.3,3215.5,0.8056]
[1736876939178,0.55,3216.0,3215.5,0.8056]
[1736876939674,0.55,3216.2,3215.2,3.8056]
[1736876940389,0.55,3216.0,3215.2,3.8056]
[1736876940572,3.10976,3215.7,3215.2,0.8056]
[1736876940781,1.38657452,3215.6,3214.9,0.8056]
[1736876941083,0.55,3215.4,3214.7,4.43424047]
[1736876941261,0.55,3215.2,3214.7,4.43424047]
[1736876941468,3.6601,3215.4,3214.3,0.8066]
[1736876941469,0.55,3214.7,3214.3,0.8066]
[1736876941683,0.55,3214.8,3214.3,0.8066]
[1736876942498,0.55,3214.9,3214.3,0.8066]
[1736876942802,0.03888743,3214.9,3214.3,0.8066]
[1736876942965,0.03888743,3214.9,3213.7,3.94082772]
[1736876943164,0.03888743,3214.9,3213.8,1.21558277]
[1736876943497,0.03888743,3214.9,3213.8,4.21558277]
[1736876943651,0.55,3214.6,3213.8,7.32715277]
[1736876943849,0.03888828,3214.5,3213.8,7.32715277]
[1736876944056,0.55,3214.5,3213.8,4.21558277]
[1736876944259,0.55,3214.3,3213.8,1.21558277]
[1736876944488,3.6611,3214.3,3213.8,0.8215]
[1736876945461,3.66093,3214.5,3213.8,0.8215]
[1736876946816,0.55,3214.5,3213.8,0.8215]
[1736876947101,0.55,3214.2,3213.2,3.11209]
[1736876947288,0.55,3214.5,3213.3,3.11201]
[1736876947492,3.11119,3214.3,3213.4,3.311201]
[1736876947803,0.55,3214.2,3213.4,3.311201]
[1736876948167,3.66093,3214.5,3213.4,6.423081]
[1736876948480,0.55,3214.1,3213.4,3.311201]
[1736876948661,0.58889571,3214.5,3213.4,3.311201]
[1736876948863,0.55,3214.4,3213.4,3.311201]
[1736876949114,0.58889571,3214.5,3213.4,6.423161]
[1736876949265,0.55,3214.2,3213.4,6.423161]
[1736876949758,3.11078,3214.7,3213.6,3.11175]
[1736876949974,3.30678,3214.7,3213.7,0.393325]
[1736876950278,0.196,3214.7,3213.8,3.11156]
[1736876950673,0.55,3214.6,3213.7,3.11166]
[1736876950874,0.55,3214.6,3213.8,0.8215]
[1736876951104,0.196,3214.9,3213.9,3.94082772]
[1736876951409,0.196,3214.9,3214.1,3.11127]
[1736876951819,0.55,3214.8,3214.1,3.11127]
[1736876952317,0.55,3214.8,3214.1,0.78735977]
[1736876952512,3.66062,3214.8,3214.0,0.8215]
[1736876953406,0.55,3214.8,3214.0,3.93286]
[1736876955270,0.55,3214.8,3214.1,3.11125]
[1736876955604,0.55,3214.9,3214.1,3.11125]
[1736876955805,3.66051,3214.9,3214.0,0.8215]
[1736876956005,3.66051,3214.9,3214.0,3.93287]
[1736876956209,3.66051,3214.9,3214.1,0.393287]
[1736876956410,3.66051,3214.9,3214.1,3.393287]
[1736876956919,3.66051,3214.9,3214.1,3.504557]
[1736876956920,0.55,3214.9,3214.1,3.504557]
[1736876960211,3.66053,3214.9,3214.1,0.393287]
[1736876960410,3.6994175,3214.9,3214.1,0.393287]
[1736876960624,3.66053,3214.9,3214.1,0.393287]
[1736876962850,1.3095,3214.0,3212.8,4.04994764]
[1736876963037,0.55,3213.8,3212.8,4.66943927]
[1736876963349,0.7595,3214.9,3213.8,0.8059]
[1736876963506,0.7595,3214.9,3214.1,6.35531764]
[1736876963710,0.7595,3214.9,3213.9,3.11144]
[1736876964039,3.66062,3214.8,3213.9,3.11144]
[1736876964221,3.69950772,3214.8,3213.9,3.11144]
[1736876964546,0.55,3214.6,3213.9,0.71613876]
[1736876964707,0.03889075,3214.6,3213.8,0.8059]
[1736876964909,0.58889296,3214.6,3213.5,0.8059]
[1736876965160,0.55,3214.4,3213.5,3.8059]
[1736876965375,3.1112,3214.2,3213.5,0.8059]
[1736876965644,0.7595,3214.1,3213.5,0.8059]
[1736876966048,0.7595,3214.1,3213.5,3.8059]
[1736876966245,0.7595,3214.1,3213.5,4.82209076]
[1736876966648,0.7595,3214.1,3213.5,1.82209076]
[1736876967134,0.7595,3214.1,3213.5,4.93395076]
[1736876967910,0.7595,3214.4,3213.7,3.11165]
[1736876968111,0.7595,3214.7,3213.7,3.24404764]
[1736876968521,0.7595,3214.7,3213.7,6.35571764]
[1736876968914,0.55,3214.5,3213.5,0.8059]
[1736876969148,0.55,3214.2,3213.3,3.0]
[1736876969378,0.194,3214.1,3213.2,3.8059]
[1736876969539,0.194,3214.1,3213.3,3.11198]
[1736876969865,0.194,3214.1,3213.3,1.01619276]
[1736876970455,0.194,3214.1,3213.4,3.11194]
[1736876970765,0.7595,3213.8,3212.9,1.27284393]
[1736876970947,3.15057009,3213.7,3212.9,0.8059]
[1736876971473,3.11198,3213.4,3212.6,0.8059]
[1736876971674,0.03890592,3213.3,3212.7,0.2871657]
[1736876971878,3.11199,3213.4,3212.7,0.2871657]
[1736876972189,0.194,3213.2,3212.7,0.2871657]
[1736876972779,0.194,3213.2,3212.8,3.11251]
[1736876972933,0.7595,3213.5,3212.6,6.11269]
[1736876973130,0.7595,3213.5,3212.7,3.48406993]
[1736876974460,0.7595,3213.5,3212.7,0.37142993]
[1736876974665,0.7595,3213.5,3212.7,3.48404993]
[1736876975463,0.55,3213.2,3212.6,3.0]
[1736876975654,3.11198,3213.4,3212.4,6.1129]
[1736876975854,0.55,3213.3,3212.6,3.0]
[1736876976053,0.7595,3213.5,3212.6,3.0]
[1736876976360,0.55,3213.4,3212.6,3.0]
[1736876976559,0.55,3213.4,3212.7,0.93568376]
[1736876978811,0.5889062,3213.4,3212.7,0.93568376]
[1736876979011,0.55,3213.4,3212.7,0.93568376]
[1736876979372,0.55,3213.4,3212.8,0.8059]
[1736876979575,3.30553,3213.9,3212.8,4.04994764]
[1736876979790,3.11172,3213.7,3212.9,0.49856314]
[1736876979991,0.7595,3213.6,3212.8,0.8059]
[1736876980206,0.7595,3213.6,3212.6,3.0]
[1736876980207,0.58890424,3213.5,3212.6,3.0]
[1736876980414,0.7595,3213.2,3212.1,0.8059]
[1736876980622,0.7595,3213.2,3211.1,8.35211656]
[1736876980623,0.55,3212.8,3211.7,0.8059]
[1736876980798,0.7595,3212.5,3211.7,0.8059]
[1736876980997,0.03891776,3212.4,3211.7,1.52225776]
[1736876981197,0.55,3212.4,3211.7,0.71635776]
[1736876981507,0.03891902,3212.3,3211.4,3.91971]
[1736876981918,3.66301,3212.4,3211.4,0.8059]
[1736876981919,0.55,3212.4,3211.4,0.8059]
[1736876982135,3.15195902,3212.3,3211.4,0.8059]
[1736876982887,0.55,3212.4,3211.4,3.91978]
[1736876983317,3.66297,3212.4,3211.4,3.91978]
[1736876983810,3.66297,3212.4,3211.1,3.93764397]
[1736876983811,0.7595,3212.1,3211.1,3.11417]
[1736876983998,0.7595,3212.1,3211.2,3.11405]
[1736876985520,0.7595,3212.1,3210.9,3.8059]
[1736876985521,0.55,3212.0,3211.0,3.11426]
[1736876985733,0.55,3212.0,3211.0,4.2000404]
[1736876985922,3.66334,3212.0,3211.1,3.11419]
[1736876986594,3.66334,3212.0,3210.9,3.8059]
[1736876986595,0.55,3212.0,3210.9,3.8059]
[1736876986795,3.90622,3211.7,3210.7,3.11458]
[1736876987010,0.194,3211.6,3210.7,3.11458]
[1736876987221,0.194,3211.6,3210.7,3.9011024]
[1736876987421,0.194,3211.6,3210.6,3.813]
[1736876987422,3.11381,3211.5,3210.6,3.813]
[1736876987947,3.11381,3211.5,3210.6,0.813]
[1736876988246,0.55,3211.5,3210.6,3.92766]
[1736876988741,0.194,3211.6,3210.6,0.813]
[1736876988899,0.7926,3211.7,3211.2,3.11408]
[1736876989238,0.7926,3211.7,3211.0,3.11426]
[1736876989434,0.03892332,3211.6,3210.8,3.0]
[1736876989597,0.55,3211.6,3210.8,3.0]
[1736876990238,0.55,3211.6,3210.8,6.11447]
[1736876991834,0.58892744,3211.6,3210.8,6.11447]
[1736876992039,3.11391,3211.4,3210.4,3.1148]
[1736876992244,0.7926,3211.3,3210.4,3.9013444]
[1736876992415,0.7926,3211.3,3210.3,3.11491]
[1736876992615,0.7926,3211.3,3210.4,3.11485]
[1736876992917,0.7926,3211.3,3210.5,3.11477]
[1736876993236,0.7926,3211.3,3210.3,3.11492]
[1736876993606,0.7926,3211.3,3210.4,3.11486]
[1736876994816,0.7926,3211.3,3210.4,3.11481]
[1736876995333,0.03893215,3211.2,3210.4,3.11481]
[1736876995636,0.03893215,3211.2,3210.8,0.1]
[1736876995825,0.55,3211.1,3210.8,0.1]
[1736876996023,0.7926,3210.9,3210.8,0.1]
[1736876996633,1.38153436,3210.9,3210.8,0.1]
[1736876997162,0.9866,3210.9,3210.8,0.1]
[1736876997931,0.7926,3211.6,3210.8,0.1]
[1736876998248,0.194,3211.0,3210.8,0.1]
[1736876998423,0.9866,3211.0,3210.8,0.1]
[1736877000061,0.55,3210.9,3210.8,0.1]
[1736877000414,0.194,3210.9,3210.8,0.1]
[1736877000917,0.7926,3211.0,3210.8,0.1]
[1736877001310,0.194,3211.1,3210.8,0.1]
[1736877001723,0.8208,3211.7,3210.9,0.7866]
[1736877002014,0.8208,3212.2,3211.4,3.11388]
[1736877002553,0.8208,3212.2,3211.4,0.311388]
[1736877002753,0.8208,3212.6,3212.1,3.11322]
[1736877003940,0.194,3212.8,3212.1,3.11322]
[1736877004411,0.55,3212.8,3211.8,3.2481588]
[1736877004612,0.744,3212.8,3211.9,3.11339]
[1736877004818,0.194,3212.8,3212.3,3.11301]
[1736877005626,0.194,3212.8,3212.2,0.7866]
[1736877006056,0.8208,3212.9,3212.3,3.11298]
[1736877007559,0.5889091,3212.8,3211.6,0.7866]
[1736877007756,0.55,3212.2,3211.1,0.6383211]
[1736877007931,3.34618331,3212.1,3211.1,3.11419]
[1736877008125,0.8208,3211.9,3211.0,3.11429]
[1736877008356,0.03892363,3211.8,3211.0,3.11429]
[1736877008528,0.03892186,3211.8,3210.9,0.7866]
[1736877008735,3.11367,3211.7,3210.8,0.1]
[1736877009058,4.48452,3211.6,3210.8,0.1]
[1736877010020,0.8208,3211.6,3210.9,3.11438]
[1736877010223,0.8208,3211.6,3210.8,0.1]
[1736877010646,0.8208,3211.6,3211.0,3.11425]
[1736877011637,0.8208,3211.6,3210.8,0.1]
[1736877011844,0.85972625,3211.6,3210.8,0.1]
[1736877012064,0.55,3211.5,3210.8,0.1]
[1736877012264,0.8208,3211.6,3210.8,0.1]
[1736877012570,0.8208,3211.6,3210.8,3.21446]
[1736877013763,0.8208,3211.6,3210.8,0.1]
[1736877013972,0.8208,3211.6,3211.0,3.11423]
[1736877014170,0.8208,3211.6,3211.0,3.435653]
[1736877014338,0.8208,3211.6,3211.2,3.11401]
[1736877014538,0.194,3211.8,3211.0,3.435663]
[1736877015344,3.30752,3211.8,3211.0,0.321423]
[1736877015546,0.194,3211.8,3211.0,0.321423]
[1736877015746,0.7986,3211.7,3210.9,3.11437]
[1736877016541,0.194,3211.8,3211.1,3.1141]
[1736877016874,0.194,3211.8,3210.9,0.7979]
[1736877017069,0.7986,3212.0,3210.9,0.7979]
[1736877017256,0.194,3211.9,3211.1,3.11417]
[1736877017467,0.194,3211.9,3211.2,3.11409]
[1736877017971,0.7986,3212.0,3211.3,3.11391]
[1736877018171,0.9926,3212.4,3211.6,3.0]
[1736877018374,0.9926,3212.4,3211.9,3.11341]
[1736877018670,0.7986,3212.4,3211.8,3.1135]
[1736877019057,0.7986,3212.4,3211.6,6.11367]
[1736877019267,0.7986,3212.4,3211.7,1.08511436]
[1736877020680,0.7986,3212.0,3211.2,1.109309]
[1736877021053,0.7986,3212.4,3211.5,3.11375]
[1736877022286,0.7986,3212.4,3211.3,3.93957362]
[1736877022577,0.7986,3212.4,3211.6,3.11371]
[1736877022763,0.79485199,3212.4,3211.6,3.11371]
[1736877022940,0.79485199,3212.4,3211.7,0.311371]
[1736877023359,3.90780199,3212.4,3211.7,0.311371]
[1736877023563,0.55,3212.3,3211.0,3.93957362]
[1736877023763,3.11335,3212.0,3211.1,6.1141]
[1736877024290,0.55,3212.3,3210.9,3.90657]
[1736877024291,0.03892186,3212.2,3210.9,3.90657]
[1736877024492,3.11303,3212.3,3211.2,3.93957362]
[1736877024641,0.194,3212.5,3211.3,0.39395736]
[1736877024842,0.55,3212.3,3211.3,3.50793736]
[1736877025043,0.194,3212.2,3211.3,3.50793736]
[1736877025364,0.194,3212.2,3211.6,3.93957362]
[1736877025568,0.194,3212.2,3211.7,0.39395736]
[1736877025887,0.194,3212.2,3211.7,3.50750736]
[1736877026172,0.194,3212.2,3211.8,3.11347]
[1736877026701,0.8035,3212.5,3211.7,3.39395736]
[1736877027001,0.8035,3213.7,3212.4,3.7922]
[1736877027293,0.9975,3214.0,3213.2,3.11214]
[1736877027504,4.10889,3214.0,3213.1,0.7922]
[1736877027663,4.10889,3214.0,3210.4,2.24128288]
[1736877027664,0.9975,3214.0,3212.4,3.93957362]
[1736877027851,0.8035,3213.2,3212.4,3.11289]
[1736877028047,3.15116428,3213.1,3212.3,0.7922]
[1736877028254,3.11226,3213.1,3212.0,0.7922]
[1736877028562,3.30826,3213.1,3212.2,3.11312]
[1736877028766,3.30826,3213.1,3212.1,3.0]
[1736877029082,0.196,3213.1,3212.2,3.11312]
[1736877030286,3.15128816,3213.0,3212.1,6.93814196]
[1736877030470,4.46603,3212.9,3211.9,3.1134]
[1736877030787,3.11255,3212.8,3211.9,3.1134]
[1736877031090,3.11255,3212.8,3211.9,6.1134]
[1736877031287,1.3535,3212.9,3211.9,6.1134]
[1736877031584,1.3535,3212.9,3211.9,3.0]
[1736877031789,0.8135,3212.4,3211.5,6.36138296]
[1736877031983,0.8135,3212.4,3211.5,7.11937699]
[1736877032289,0.8135,3212.4,3211.5,4.00558699]
[1736877032290,0.05196221,3212.3,3211.5,4.00558699]
[1736877032474,0.05196221,3212.3,3211.6,3.11369]
[1736877032786,0.05196221,3212.3,3211.5,4.00558699]
[1736877032955,0.05196221,3212.3,3211.7,3.1136]
[1736877033154,0.05196221,3212.3,3212.0,3.11328]
[1736877033354,0.8135,3212.7,3212.1,3.24759296]
[1736877033554,0.8135,3212.7,3211.9,0.8246]
[1736877033762,0.55,3212.6,3211.8,6.67241296]
[1736877033993,3.16359639,3212.5,3211.6,3.11369]
[1736877034192,0.8135,3212.4,3211.5,4.00558699]
[1736877034385,0.05053997,3212.3,3211.5,4.00558699]
[1736877034567,0.05053997,3212.3,3211.6,3.11366]
[1736877034774,0.05053997,3212.3,3211.5,4.00558699]
[1736877034968,3.16357997,3212.3,3211.5,3.24759296]
[1736877035584,3.11313,3212.2,3211.3,3.50787736]
[1736877035785,0.8135,3211.9,3210.9,3.24759296]
[1736877035957,0.05034475,3211.8,3210.9,3.24759296]
[1736877036159,0.05034475,3211.8,3211.1,3.11419]
[1736877036907,0.05034475,3211.8,3211.2,3.24759296]
[1736877037063,0.05034475,3211.8,3211.3,0.8246]
[1736877037264,0.196,3211.9,3211.6,3.0]
[1736877037773,0.196,3211.9,3211.8,3.11351]
[1736877038469,0.196,3211.9,3211.6,6.11366]
[1736877038673,0.8135,3212.2,3211.7,0.9361253]
[1736877038861,0.8135,3212.2,3211.7,4.0496853]
[1736877039066,0.8135,3212.2,3211.8,3.11351]
[1736877039269,0.8135,3212.5,3212.0,3.11331]
[1736877039568,0.8135,3212.5,3212.1,0.311331]
[1736877041197,0.8135,3212.5,3212.2,3.11304]
[1736877041399,0.8135,3212.5,3212.1,0.311331]
[1736877041602,0.8135,3212.5,3211.8,3.24759296]
[1736877041603,0.8135,3212.5,3212.0,3.11328]
[1736877042107,0.8135,3212.5,3211.8,3.24759296]
[1736877042267,0.8135,3212.5,3212.1,3.11322]
[1736877042607,0.8135,3212.5,3211.8,3.24759296]
[1736877042803,0.8135,3212.5,3212.0,3.11332]
[1736877043096,0.8135,3212.5,3211.8,6.36108296]
[1736877043263,0.58891283,3212.4,3211.3,0.8246]
[1736877043474,0.767,3212.1,3211.0,4.05069296]
[1736877043681,0.767,3212.1,3211.5,3.1138]
[1736877043880,0.05075239,3212.0,3211.5,3.1138]
[1736877044082,0.05075239,3212.0,3211.3,6.36159296]
[1736877044369,0.05075239,3212.0,3211.7,3.1136]
[1736877045313,0.05075239,3212.0,3211.4,3.11381]
[1736877045465,0.05075239,3212.0,3211.4,3.7499503]
[1736877045865,0.767,3212.1,3211.2,3.11407]
[1736877046078,0.05009812,3211.9,3211.2,3.11407]
[1736877046301,0.05074839,3212.0,3211.2,3.11407]
[1736877046496,0.05000558,3211.8,3211.1,0.4050693]
[1736877046701,0.0507066,3211.9,3211.3,3.24759296]
[1736877046904,0.050623,3211.7,3211.3,3.24759296]
[1736877047090,0.05003246,3211.8,3211.4,0.3247593]
[1736877047295,0.767,3212.1,3211.3,6.36155296]
[1736877047491,0.04999064,3211.7,3211.3,6.36155296]
[1736877047691,0.767,3212.1,3211.3,3.11396]
[1736877047894,0.04978286,3211.6,3211.4,3.11389]
[1736877048099,0.767,3212.1,3211.4,3.11389]
[1736877048294,0.767,3212.1,3211.1,3.4050693]
[1736877048497,0.04997777,3212.0,3211.2,3.11404]
[1736877049268,0.04997777,3212.0,3211.1,3.4050693]
[1736877049475,0.04997777,3212.0,3211.3,3.11397]
[1736877050613,0.04997777,3212.0,3210.7,0.8313]
[1736877050614,0.7702,3211.8,3210.7,0.8313]
[1736877050773,0.04986426,3211.7,3210.9,3.11435]
[1736877051402,1.35912412,3211.6,3210.7,3.11456]
[1736877051709,1.35912412,3211.6,3210.5,6.36231296]
[1736877051710,0.05015887,3211.5,3210.5,6.36231296]
[1736877051914,4.43411,3211.4,3210.5,6.36231296]
[1736877052212,0.04909358,3211.3,3210.6,3.0]